fUSD/lending_fUSD_20260612
["ID","MTS","AMOUNT","RATE_DAILY","PERIOD"]
[424852451,1781206232000,-250.0,0.00011287,2]
[424852449,1781206232000,-250.0,0.00011201,2]
[424852454,1781206232000,-420.0,0.00011927,2]
[424852472,1781206232000,-166.66,0.00012591,2]
[424852444,1781206232000,-300.0,0.00010852,2]
[424852432,1781206232000,-150.0,0.00010272,2]
[424852442,1781206232000,-150.0,0.00010386,2]
[424852440,1781206232000,-250.0,0.00010283,2]
[424852441,1781206232000,-150.0,0.00010284,2]
[424852433,1781206232000,-300.0,0.0001028,2]
[424852435,1781206232000,-300.0,0.0001028,2]
[424852429,1781206232000,-382.224,0.00010183,2]
[424852431,1781206232000,-300.0,0.00010227,2]
[424852430,1781206232000,-1126.34053152,0.00010183,2]
[424852434,1781206232000,-300.0,0.0001028,2]
[424852428,1781206232000,-822.21968653,0.00010183,2]
[424852427,1781206232000,-659.58,0.00010183,2]
[424852480,1781206232000,-584.0,0.00013108,2]
[424852443,1781206232000,-3182.0,0.00010742,2]
[424852478,1781206232000,-166.66,0.00012976,2]
[424852512,1781206232000,-500.0,0.00013425,2]
[424852461,1781206232000,-200.0,0.00012174,2]
[424852513,1781206232000,-233.24958669,0.00013425,2]
[424852514,1781206232000,-500.0,0.00013425,2]
[424852476,1781206232000,-154.31753986,0.00012799,2]
[424852516,1781206232000,-301.82237475,0.00013425,2]
[424852517,1781206232000,-500.0,0.00013425,2]
[424852503,1781206232000,-500.0,0.00013425,2]
[424852504,1781206232000,-500.0,0.00013425,2]
[424852510,1781206232000,-500.0,0.00013425,2]
[424852501,1781206232000,-500.0,0.00013425,2]
[424852491,1781206232000,-500.0,0.00013425,2]
[424852508,1781206232000,-500.0,0.00013425,2]
[424852499,1781206232000,-500.0,0.00013425,2]
[424852507,1781206232000,-500.0,0.00013425,2]
[424852515,1781206232000,-500.0,0.00013425,2]
[424852495,1781206232000,-500.0,0.00013425,2]
[424852497,1781206232000,-500.0,0.00013425,2]
[424852463,1781206232000,-1469.31,0.00012174,2]
[424852465,1781206232000,-166.66,0.00012205,2]
[424852486,1781206232000,-344.73,0.00013268,2]
[424852469,1781206232000,-153.06,0.00012359,2]
[424852482,1781206232000,-166.66,0.00013233,2]
[424852467,1781206232000,-9379.19,0.00012224,2]
[424852471,1781206232000,-166.66,0.00012462,2]
[424852487,1781206232000,-500.0,0.00013425,2]
[424852489,1781206232000,-500.0,0.00013425,2]
[424852493,1781206232000,-500.0,0.00013425,2]
[424852484,1781206232000,-150.0,0.00013233,2]
[424852530,1781206233000,-441.0,0.00013425,2]
[424852539,1781206233000,-441.0,0.00013425,2]
[424852535,1781206233000,-441.0,0.00013425,2]
[424852532,1781206233000,-441.0,0.00013425,2]
[424852534,1781206233000,-441.0,0.00013425,2]
[424852533,1781206233000,-441.0,0.00013425,2]
[424852531,1781206233000,-441.0,0.00013425,2]
[424852529,1781206233000,-441.0,0.00013425,2]
[424852527,1781206233000,-441.0,0.00013425,2]
[424852520,1781206233000,-441.0,0.00013425,2]
[424852526,1781206233000,-441.0,0.00013425,2]
[424852525,1781206233000,-441.0,0.00013425,2]
[424852538,1781206233000,-441.0,0.00013425,2]
[424852523,1781206233000,-441.0,0.00013425,2]
[424852524,1781206233000,-441.0,0.00013425,2]
[424852518,1781206233000,-500.0,0.00013425,2]
[424852522,1781206233000,-441.0,0.00013425,2]
[424852519,1781206233000,-560.7117917,0.00013425,2]
[424852521,1781206233000,-441.0,0.00013425,2]
[424852528,1781206233000,-441.0,0.00013425,2]
[424852536,1781206233000,-441.0,0.00013425,2]
[424852550,1781206233000,-500.0,0.00013425,2]
[424852541,1781206233000,-441.0,0.00013425,2]
[424852537,1781206233000,-441.0,0.00013425,2]
[424852559,1781206233000,-13042.80021956,0.00013499,2]
[424852560,1781206233000,-390.37,0.00013499,2]
[424852558,1781206233000,-9262.90087722,0.00013499,2]
[424852555,1781206233000,-39467.94872456,0.00013499,2]
[424852553,1781206233000,-166.66,0.0001349,2]
[424852556,1781206233000,-3229.88370083,0.00013499,2]
[424852551,1781206233000,-283.99832687,0.00013425,2]
[424852552,1781206233000,-150.0,0.00013441,2]
[424852554,1781206233000,-175.50911434,0.00013497,2]
[424852557,1781206233000,-12135.95426429,0.00013499,2]
[424852548,1781206233000,-166.61154973,0.00013425,2]
[424852545,1781206233000,-150.0,0.00013425,2]
[424852540,1781206233000,-441.0,0.00013425,2]
[424852546,1781206233000,-150.0,0.00013425,2]
[424852547,1781206233000,-184.85073511,0.00013425,2]
[424852544,1781206233000,-150.0,0.00013425,2]
[424852543,1781206233000,-453.07899229,0.00013425,2]
[424852549,1781206233000,-500.0,0.00013425,2]
[424852542,1781206233000,-441.0,0.00013425,2]
[424852579,1781206238000,-985.73921758,0.00013598,2]
[424852584,1781206238000,-985.73921758,0.00013598,2]
[424852582,1781206238000,-985.73921758,0.00013598,2]
[424852586,1781206238000,-985.73921758,0.00013598,2]
[424852580,1781206238000,-985.73921758,0.00013598,2]
[424852583,1781206238000,-985.73921758,0.00013598,2]
[424852578,1781206238000,-985.73921758,0.00013598,2]
[424852588,1781206238000,-985.73921758,0.00013598,2]
[424852577,1781206238000,-985.73921758,0.00013598,2]
[424852576,1781206238000,-985.73921758,0.00013598,2]
[424852565,1781206238000,-632.42829031,0.00013499,2]
[424852572,1781206238000,-502.50956451,0.00013597,2]
[424852574,1781206238000,-985.73921758,0.00013598,2]
[424852573,1781206238000,-555.94573938,0.00013598,2]
[424852570,1781206238000,-344.73,0.00013516,2]
[424852575,1781206238000,-985.73921758,0.00013598,2]
[424852571,1781206238000,-6954.0,0.00013562,2]
[424852567,1781206238000,-16680.92211023,0.00013499,2]
[424852566,1781206238000,-538.715813,0.00013499,2]
[424852587,1781206238000,-985.73921758,0.00013598,2]
[424852568,1781206238000,-309.9562,0.00013499,2]
[424852581,1781206238000,-985.73921758,0.00013598,2]
[424852569,1781206238000,-161.70674204,0.000135,2]
[424852600,1781206238000,-985.73921758,0.00013598,2]
[424852585,1781206238000,-985.73921758,0.00013598,2]
[424852610,1781206238000,-985.73921758,0.00013598,2]
[424852611,1781206238000,-985.73921758,0.00013598,2]
[424852612,1781206238000,-985.73921758,0.00013598,2]
[424852606,1781206238000,-985.73921758,0.00013598,2]
[424852602,1781206238000,-985.73921758,0.00013598,2]
[424852607,1781206238000,-985.73921758,0.00013598,2]
[424852608,1781206238000,-985.73921758,0.00013598,2]
[424852605,1781206238000,-985.73921758,0.00013598,2]
[424852604,1781206238000,-985.73921758,0.00013598,2]
[424852601,1781206238000,-985.73921758,0.00013598,2]
[424852603,1781206238000,-985.73921758,0.00013598,2]
[424852597,1781206238000,-985.73921758,0.00013598,2]
[424852596,1781206238000,-985.73921758,0.00013598,2]
[424852595,1781206238000,-985.73921758,0.00013598,2]
[424852590,1781206238000,-985.73921758,0.00013598,2]
[424852592,1781206238000,-985.73921758,0.00013598,2]
[424852593,1781206238000,-985.73921758,0.00013598,2]
[424852591,1781206238000,-985.73921758,0.00013598,2]
[424852589,1781206238000,-985.73921758,0.00013598,2]
[424852594,1781206238000,-985.73921758,0.00013598,2]
[424852599,1781206238000,-985.73921758,0.00013598,2]
[424852598,1781206238000,-985.73921758,0.00013598,2]
[424852654,1781206239000,-362.50237529,0.00013698,2]
[424852652,1781206239000,-500.0,0.00013698,2]
[424852649,1781206239000,-500.0,0.00013698,2]
[424852647,1781206239000,-791.92,0.00013608,2]
[424852640,1781206239000,-500.0,0.00013598,2]
[424852645,1781206239000,-2500000.0,0.00013599,2]
[424852644,1781206239000,-500.0,0.00013598,2]
[424852653,1781206239000,-500.0,0.00013698,2]
[424852642,1781206239000,-500.0,0.00013598,2]
[424852650,1781206239000,-500.0,0.00013698,2]
[424852648,1781206239000,-574.57860626,0.00013698,2]
[424852665,1781206239000,-185.2409854,0.00013698,2]
[424852651,1781206239000,-500.0,0.00013698,2]
[424852658,1781206239000,-500.0,0.00013698,2]
[424852655,1781206239000,-501.98778749,0.00013698,2]
[424852657,1781206239000,-500.0,0.00013698,2]
[424852656,1781206239000,-500.0,0.00013698,2]
[424852661,1781206239000,-500.0,0.00013698,2]
[424852663,1781206239000,-500.0,0.00013698,2]
[424852664,1781206239000,-500.0,0.00013698,2]
[424852639,1781206239000,-500.0,0.00013598,2]
[424852662,1781206239000,-500.0,0.00013698,2]
[424852659,1781206239000,-500.0,0.00013698,2]
[424852646,1781206239000,-200.0,0.000136,4]
[424852643,1781206239000,-500.0,0.00013598,2]
[424852631,1781206239000,-196.73664691,0.00013598,2]
[424852634,1781206239000,-2000.0,0.00013598,2]
[424852660,1781206239000,-500.0,0.00013698,2]
[424852613,1781206239000,-985.73921758,0.00013598,2]
[424852616,1781206239000,-985.73921758,0.00013598,2]
[424852614,1781206239000,-985.73921758,0.00013598,2]
[424852617,1781206239000,-985.73921758,0.00013598,2]
[424852615,1781206239000,-985.73921758,0.00013598,2]
[424852619,1781206239000,-985.73921758,0.00013598,2]
[424852621,1781206239000,-985.73921758,0.00013598,2]
[424852622,1781206239000,-985.73921758,0.00013598,2]
[424852618,1781206239000,-985.73921758,0.00013598,2]
[424852620,1781206239000,-985.73921758,0.00013598,2]
[424852623,1781206239000,-985.73921758,0.00013598,2]
[424852625,1781206239000,-985.73921758,0.00013598,2]
[424852630,1781206239000,-985.73921758,0.00013598,2]
[424852629,1781206239000,-985.73921758,0.00013598,2]
[424852632,1781206239000,-1116.21972624,0.00013598,3]
[424852633,1781206239000,-199.48738674,0.00013598,3]
[424852627,1781206239000,-985.73921758,0.00013598,2]
[424852628,1781206239000,-985.73921758,0.00013598,2]
[424852624,1781206239000,-985.73921758,0.00013598,2]
[424852626,1781206239000,-985.73921758,0.00013598,2]
[424852635,1781206239000,-500.0,0.00013598,2]
[424852636,1781206239000,-500.0,0.00013598,2]
[424852637,1781206239000,-500.0,0.00013598,2]
[424852638,1781206239000,-500.0,0.00013598,2]
[424852641,1781206239000,-500.0,0.00013598,2]
[424852676,1781206239000,-2614.11,0.00013698,2]
[424852671,1781206239000,-2614.11,0.00013698,2]
[424852677,1781206239000,-2614.11,0.00013698,2]
[424852694,1781206239000,-500.0,0.00013698,2]
[424852695,1781206239000,-500.0,0.00013698,2]
[424852700,1781206239000,-200.0,0.00013699,2]
[424852703,1781206239000,-344.73,0.00013705,2]
[424852701,1781206239000,-587.77,0.000137,2]
[424852702,1781206239000,-500.0,0.000137,5]
[424852711,1781206239000,-250.31279834,0.00014256,2]
[424852705,1781206239000,-800.0,0.000138,5]
[424852704,1781206239000,-2000.0,0.00013758,2]
[424852710,1781206239000,-344.78,0.00014011,2]
[424852706,1781206239000,-344.73,0.00013865,2]
[424852692,1781206239000,-2614.11,0.00013698,2]
[424852709,1781206239000,-344.73,0.00014006,2]
[424852721,1781206239000,-500.0,0.00014899,2]
[424852713,1781206239000,-175.50911426,0.00014428,2]
[424852712,1781206239000,-255.0,0.00014344,2]
[424852714,1781206239000,-8219.79,0.00014504,2]
[424852718,1781206239000,-624.41,0.00014899,2]
[424852715,1781206239000,-624.41,0.00014521,2]
[424852716,1781206239000,-500.0,0.00014521,2]
[424852717,1781206239000,-1500.0,0.00014704,2]
[424852720,1781206239000,-500.0,0.00014899,2]
[424852719,1781206239000,-624.41,0.00014899,2]
[424852666,1781206239000,-624.41,0.00013698,2]
[424852708,1781206239000,-250.0,0.00014,2]
[424852696,1781206239000,-500.0,0.00013698,2]
[424852707,1781206239000,-1100.0,0.000139,5]
[424852699,1781206239000,-2500.0,0.00013699,2]
[424852693,1781206239000,-2614.34718452,0.00013698,2]
[424852668,1781206239000,-624.41,0.00013698,2]
[424852669,1781206239000,-624.41,0.00013698,2]
[424852672,1781206239000,-2614.11,0.00013698,2]
[424852675,1781206239000,-2614.11,0.00013698,2]
[424852674,1781206239000,-2614.11,0.00013698,2]
[424852673,1781206239000,-2614.11,0.00013698,2]
[424852670,1781206239000,-2614.11,0.00013698,2]
[424852681,1781206239000,-2614.11,0.00013698,2]
[424852685,1781206239000,-2614.11,0.00013698,2]
[424852682,1781206239000,-2614.11,0.00013698,2]
[424852684,1781206239000,-2614.11,0.00013698,2]
[424852667,1781206239000,-624.41,0.00013698,2]
[424852680,1781206239000,-2614.11,0.00013698,2]
[424852687,1781206239000,-2614.11,0.00013698,2]
[424852697,1781206239000,-500.0,0.00013698,2]
[424852698,1781206239000,-500.0,0.00013698,2]
[424852689,1781206239000,-2614.11,0.00013698,2]
[424852690,1781206239000,-2614.11,0.00013698,2]
[424852691,1781206239000,-2614.11,0.00013698,2]
[424852686,1781206239000,-2614.11,0.00013698,2]
[424852679,1781206239000,-2614.11,0.00013698,2]
[424852688,1781206239000,-2614.11,0.00013698,2]
[424852678,1781206239000,-2614.11,0.00013698,2]
[424852683,1781206239000,-2614.11,0.00013698,2]
[424852760,1781206240000,-299.99,0.0001531,2]
[424852759,1781206240000,-150.99,0.0001531,2]
[424852754,1781206240000,-499.99,0.0001531,2]
[424852756,1781206240000,-4999.99,0.0001531,2]
[424852748,1781206240000,-500.0,0.00014999,2]
[424852755,1781206240000,-9999.99,0.0001531,2]
[424852749,1781206240000,-500.0,0.00014999,2]
[424852757,1781206240000,-999.99,0.0001531,2]
[424852751,1781206240000,-791.92,0.00015121,2]
[424852758,1781206240000,-9999.99,0.0001531,2]
[424852753,1781206240000,-199.5,0.00015272,2]
[424852762,1781206240000,-9999.99,0.0001531,2]
[424852768,1781206240000,-1672.7364795,0.00016348,2]
[424852764,1781206240000,-433.0,0.00015549,2]
[424852765,1781206240000,-1613.0535,0.000158,2]
[424852767,1781206240000,-175.50911426,0.00016289,2]
[424852766,1781206240000,-300.0,0.00016,2]
[424852769,1781206240000,-1183.3,0.00016438,2]
[424852770,1781206240000,-2711.75409417,0.00016524,2]
[424852778,1781206240000,-587.77,0.000173,2]
[424852775,1781206240000,-312.12,0.00016999,2]
[424852771,1781206240000,-791.92,0.00016633,2]
[424852776,1781206240000,-175.50911426,0.0001722,2]
[424852752,1781206240000,-1555.5,0.00015252,2]
[424852763,1781206240000,-175.50911426,0.00015359,2]
[424852750,1781206240000,-312.12,0.0001511,2]
[424852777,1781206240000,-502.50956445,0.00017224,2]
[424852743,1781206240000,-500.0,0.00014999,2]
[424852722,1781206240000,-624.41,0.00014999,2]
[424852723,1781206240000,-624.41,0.00014999,2]
[424852724,1781206240000,-624.41,0.00014999,2]
[424852728,1781206240000,-624.41,0.00014999,2]
[424852726,1781206240000,-624.41,0.00014999,2]
[424852727,1781206240000,-624.41,0.00014999,2]
[424852734,1781206240000,-624.41,0.00014999,2]
[424852725,1781206240000,-624.41,0.00014999,2]
[424852732,1781206240000,-624.41,0.00014999,2]
[424852729,1781206240000,-624.41,0.00014999,2]
[424852733,1781206240000,-624.41,0.00014999,2]
[424852747,1781206240000,-500.0,0.00014999,2]
[424852730,1781206240000,-624.41,0.00014999,2]
[424852736,1781206240000,-624.41,0.00014999,2]
[424852746,1781206240000,-500.0,0.00014999,2]
[424852745,1781206240000,-500.0,0.00014999,2]
[424852744,1781206240000,-500.0,0.00014999,2]
[424852735,1781206240000,-624.41,0.00014999,2]
[424852740,1781206240000,-500.0,0.00014999,2]
[424852739,1781206240000,-500.0,0.00014999,2]
[424852738,1781206240000,-624.50822883,0.00014999,2]
[424852737,1781206240000,-624.41,0.00014999,2]
[424852741,1781206240000,-500.0,0.00014999,2]
[424852742,1781206240000,-500.0,0.00014999,2]
[424852731,1781206240000,-624.41,0.00014999,2]
[424852774,1781206240000,-1734.62772924,0.00016896,2]
[424852822,1781206240000,-1500000.0,0.00019507,2]
[424852772,1781206240000,-168.39,0.00016712,2]
[424852807,1781206240000,-1026.07070215,0.00019352,2]
[424852806,1781206240000,-22051.1428621,0.00019339,7]
[424852808,1781206240000,-1026.07070215,0.00019368,2]
[424852811,1781206240000,-1026.07070215,0.00019427,2]
[424852810,1781206240000,-10000.0,0.00019407,2]
[424852813,1781206240000,-2711.75409417,0.0001945,2]
[424852816,1781206240000,-500.0,0.00019506,2]
[424852821,1781206240000,-500.0,0.00019506,2]
[424852814,1781206240000,-250.0,0.00019506,7]
[424852815,1781206240000,-500.0,0.00019506,2]
[424852817,1781206240000,-500.0,0.00019506,2]
[424852809,1781206240000,-1026.07070215,0.00019371,2]
[424852828,1781206240000,-1026.07070215,0.00019603,2]
[424852820,1781206240000,-500.0,0.00019506,2]
[424852818,1781206240000,-500.0,0.00019506,2]
[424852823,1781206240000,-1026.07070215,0.0001953,2]
[424852825,1781206240000,-1026.07070215,0.00019569,2]
[424852830,1781206240000,-151.0,0.00019636,2]
[424852831,1781206240000,-151.0,0.00019636,2]
[424852824,1781206240000,-1026.07070215,0.00019547,2]
[424852832,1781206240000,-151.0,0.00019636,2]
[424852827,1781206240000,-587.77,0.000196,2]
[424852829,1781206240000,-151.0,0.00019636,2]
[424852826,1781206240000,-1026.07070215,0.00019576,2]
[424852819,1781206240000,-500.0,0.00019506,2]
[424852804,1781206240000,-2005.9555727,0.00019088,2]
[424852773,1781206240000,-736.0,0.00016859,2]
[424852803,1781206240000,-175.50911426,0.00019082,2]
[424852780,1781206240000,-2711.75409417,0.00017987,2]
[424852788,1781206240000,-175.50911426,0.00018151,2]
[424852789,1781206240000,-1200.0,0.00018275,2]
[424852782,1781206240000,-26173.53,0.00018,2]
[424852779,1781206240000,-1798.80895522,0.00017444,2]
[424852781,1781206240000,-1865.36488656,0.00017992,2]
[424852785,1781206240000,-350.0,0.00018,2]
[424852805,1781206240000,-525.0,0.00019253,3]
[424852786,1781206240000,-525.0,0.00018,2]
[424852784,1781206240000,-297.99,0.00018,2]
[424852783,1781206240000,-12942.03,0.00018,2]
[424852790,1781206240000,-231.12275902,0.000184,2]
[424852787,1781206240000,-791.92,0.00018145,2]
[424852793,1781206240000,-1934.38338736,0.0001854,2]
[424852792,1781206240000,-153.06,0.00018539,2]
[424852802,1781206240000,-289.634211,0.00018984,2]
[424852812,1781206240000,-1026.07070215,0.00019436,2]
[424852797,1781206240000,-174.121764,0.00018952,2]
[424852796,1781206240000,-312.12,0.00018888,2]
[424852801,1781206240000,-226.878081,0.00018965,2]
[424852798,1781206240000,-174.121765,0.00018952,2]
[424852795,1781206240000,-224.685934,0.00018706,2]
[424852799,1781206240000,-190.49535,0.00018952,2]
[424852794,1781206240000,-525.0,0.00018626,2]
[424852791,1781206240000,-1183.3,0.0001841,2]
[424852800,1781206240000,-177.170735,0.00018952,2]
[424852869,1781206241000,-260.0,0.0002,2]
[424852871,1781206241000,-248.0,0.0002,2]
[424852867,1781206241000,-466.629508,0.0002,2]
[424852868,1781206241000,-85219.0,0.0002,2]
[424852864,1781206241000,-200000.0,0.0002,2]
[424852861,1781206241000,-1026.07070215,0.00019994,2]
[424852863,1781206241000,-198.51852478,0.0002,2]
[424852865,1781206241000,-400.0,0.0002,2]
[424852860,1781206241000,-1026.07070215,0.00019993,2]
[424852866,1781206241000,-8725.0,0.0002,2]
[424852874,1781206241000,-1839.64,0.0002,2]
[424852881,1781206241000,-1292.0,0.0002,2]
[424852872,1781206241000,-269.0,0.0002,2]
[424852870,1781206241000,-279.0,0.0002,2]
[424852886,1781206241000,-1026.07070215,0.00020038,2]
[424852876,1781206241000,-206.0,0.0002,2]
[424852875,1781206241000,-345.0,0.0002,2]
[424852878,1781206241000,-364.0,0.0002,2]
[424852877,1781206241000,-105334.38781013,0.0002,2]
[424852884,1781206241000,-153.08496381,0.0002,20]
[424852879,1781206241000,-802.0,0.0002,2]
[424852885,1781206241000,-175.50911426,0.00020012,2]
[424852882,1781206241000,-241.0,0.0002,2]
[424852862,1781206241000,-500.0,0.00019999,2]
[424852873,1781206241000,-880.0,0.0002,2]
[424852857,1781206241000,-525.0,0.00019879,3]
[424852855,1781206241000,-1026.07070215,0.0001983,2]
[424852858,1781206241000,-1400.0,0.000199,7]
[424852883,1781206241000,-199.0,0.0002,2]
[424852833,1781206241000,-151.0,0.00019636,2]
[424852834,1781206241000,-151.0,0.00019636,2]
[424852844,1781206241000,-151.0,0.00019636,2]
[424852835,1781206241000,-151.0,0.00019636,2]
[424852837,1781206241000,-151.0,0.00019636,2]
[424852838,1781206241000,-151.0,0.00019636,2]
[424852842,1781206241000,-151.0,0.00019636,2]
[424852843,1781206241000,-151.0,0.00019636,2]
[424852836,1781206241000,-151.0,0.00019636,2]
[424852840,1781206241000,-151.0,0.00019636,2]
[424852859,1781206241000,-1026.07070215,0.00019948,2]
[424852839,1781206241000,-151.0,0.00019636,2]
[424852846,1781206241000,-151.0,0.00019636,2]
[424852854,1781206241000,-1026.07070215,0.00019828,2]
[424852849,1781206241000,-151.0,0.00019636,2]
[424852847,1781206241000,-151.0,0.00019636,2]
[424852845,1781206241000,-151.0,0.00019636,2]
[424852848,1781206241000,-151.0,0.00019636,2]
[424852853,1781206241000,-1026.07070215,0.00019776,2]
[424852850,1781206241000,-1026.07070215,0.00019652,2]
[424852852,1781206241000,-1026.07070215,0.00019735,2]
[424852851,1781206241000,-1026.07070215,0.00019723,2]
[424852856,1781206241000,-1026.07070215,0.0001985,2]
[424852841,1781206241000,-2080.17592889,0.00019636,2]
[424852887,1781206241000,-1026.07070215,0.0002007,2]
[424852880,1781206241000,-389.0,0.0002,2]
[424852925,1781206241000,-206.0,0.00021,2]
[424852916,1781206241000,-19999.99,0.00020951,2]
[424852918,1781206241000,-466.629508,0.00021,2]
[424852920,1781206241000,-279.0,0.00021,2]
[424852919,1781206241000,-260.0,0.00021,2]
[424852923,1781206241000,-880.0,0.00021,2]
[424852924,1781206241000,-345.0,0.00021,2]
[424852933,1781206241000,-525.0,0.00021131,4]
[424852932,1781206241000,-1124.99999999,0.0002108,2]
[424852934,1781206241000,-473.64339052,0.000212,2]
[424852926,1781206241000,-364.0,0.00021,2]
[424852928,1781206241000,-389.0,0.00021,2]
[424852922,1781206241000,-269.0,0.00021,2]
[424852927,1781206241000,-802.0,0.00021,2]
[424852931,1781206241000,-199.0,0.00021,2]
[424852929,1781206241000,-1292.0,0.00021,2]
[424852937,1781206241000,-473.64339052,0.000214,2]
[424852935,1781206241000,-2319.72410669,0.0002128,2]
[424852939,1781206241000,-587.77,0.000215,2]
[424852938,1781206241000,-352.79757313,0.00021404,2]
[424852936,1781206241000,-150.0,0.00021333,2]
[424852940,1781206241000,-473.64339052,0.000216,2]
[424852941,1781206241000,-1839.64,0.00021664,2]
[424852942,1781206241000,-525.0,0.00021758,5]
[424852889,1781206241000,-1026.07070215,0.00020087,2]
[424852930,1781206241000,-241.0,0.00021,2]
[424852917,1781206241000,-473.64339052,0.00021,2]
[424852921,1781206241000,-248.0,0.00021,2]
[424852915,1781206241000,-175.50911426,0.00020943,2]
[424852892,1781206241000,-2157.14243826,0.00020184,2]
[424852888,1781206241000,-171.308457,0.00020072,2]
[424852893,1781206241000,-1026.07070215,0.00020196,2]
[424852894,1781206241000,-198.51852478,0.000202,2]
[424852895,1781206241000,-1026.07070215,0.00020223,2]
[424852891,1781206241000,-1026.07070215,0.00020183,2]
[424852896,1781206241000,-1026.07070215,0.00020231,2]
[424852890,1781206241000,-1026.07070215,0.00020115,2]
[424852914,1781206241000,-2711.75409417,0.00020913,2]
[424852898,1781206241000,-1026.07070215,0.0002026,2]
[424852899,1781206241000,-1026.07070215,0.00020275,2]
[424852908,1781206241000,-150.0,0.0002058,2]
[424852900,1781206241000,-1026.07070215,0.00020293,2]
[424852897,1781206241000,-1026.07070215,0.00020238,2]
[424852911,1781206241000,-2236.95670847,0.00020732,2]
[424852913,1781206241000,-502.50956445,0.00020851,2]
[424852909,1781206241000,-150.0,0.0002058,2]
[424852905,1781206241000,-1026.07070215,0.00020483,2]
[424852907,1781206241000,-525.0,0.00020505,4]
[424852904,1781206241000,-1026.07070215,0.00020464,2]
[424852912,1781206241000,-312.12,0.00020776,2]
[424852903,1781206241000,-1183.3,0.00020381,2]
[424852902,1781206241000,-1026.07070215,0.00020332,2]
[424852910,1781206241000,-151.29325014,0.0002058,2]
[424852901,1781206241000,-1026.07070215,0.000203,2]
[424852906,1781206241000,-1026.07070215,0.00020498,2]
[424852987,1781206242000,-500.0,0.00021974,2]
[424852984,1781206242000,-500.0,0.00021974,2]
[424852982,1781206242000,-500.0,0.00021974,2]
[424852980,1781206242000,-500.0,0.00021974,2]
[424852976,1781206242000,-500.0,0.00021974,2]
[424852972,1781206242000,-500.0,0.00021974,2]
[424852973,1781206242000,-500.0,0.00021974,2]
[424852971,1781206242000,-500.0,0.00021974,2]
[424852969,1781206242000,-500.0,0.00021974,2]
[424852981,1781206242000,-500.0,0.00021974,2]
[424852975,1781206242000,-500.0,0.00021974,2]
[424852985,1781206242000,-500.0,0.00021974,2]
[424853000,1781206242000,-500.0,0.00021974,2]
[424852989,1781206242000,-500.0,0.00021974,2]
[424852992,1781206242000,-500.0,0.00021974,2]
[424852993,1781206242000,-500.0,0.00021974,2]
[424852995,1781206242000,-500.0,0.00021974,2]
[424852997,1781206242000,-500.0,0.00021974,2]
[424853005,1781206242000,-500.0,0.00021974,2]
[424853006,1781206242000,-500.0,0.00021974,2]
[424853007,1781206242000,-500.0,0.00021974,2]
[424852998,1781206242000,-500.0,0.00021974,2]
[424852996,1781206242000,-500.0,0.00021974,2]
[424853002,1781206242000,-500.0,0.00021974,2]
[424852974,1781206242000,-500.0,0.00021974,2]
[424852983,1781206242000,-500.0,0.00021974,2]
[424852978,1781206242000,-500.0,0.00021974,2]
[424852943,1781206242000,-2405.55389863,0.00021828,2]
[424852979,1781206242000,-500.0,0.00021974,2]
[424852944,1781206242000,-473.64339052,0.000219,2]
[424852945,1781206242000,-5000.0,0.00021918,2]
[424852952,1781206242000,-500.0,0.00021974,2]